[Event "*** Titled Tuesday Blitz"]
[Site "Chess.com"]
[Date "2021.02.16"]
[Round "5"]
[White "HouseOfDurin"]
[Black "Yaacovn"]
[Result "1-0"]
[WhiteElo "2157"]
[BlackElo "2744"]
[TimeControl "180+1"]
[EndTime "10:59:43 PST"]
[Termination "HouseOfDurin won by checkmate"]

1. d4 {[%clk 0:03:00.9]} 1... Nf6 {[%clk 0:00:52]} 2. Bg5 {[%clk 0:03:01.1]}
2... e6 {[%clk 0:00:51.4]} 3. e4 {[%clk 0:03:00.5]} 3... h6 {[%clk 0:00:50.8]}
4. Bxf6 {[%clk 0:03:00.6]} 4... Qxf6 {[%clk 0:00:51.7]} 5. e5 {[%clk 0:03:01.2]}
5... Qe7 {[%clk 0:00:51.2]} 6. c3 {[%clk 0:03:00.9]} 6... d6 {[%clk 0:00:50.4]}
7. f4 {[%clk 0:03:01]} 7... g5 {[%clk 0:00:49.6]} 8. Nf3 {[%clk 0:02:50.2]} 8...
gxf4 {[%clk 0:00:48.9]} 9. Qd2 {[%clk 0:02:49.4]} 9... Nc6 {[%clk 0:00:45.3]}
10. Bb5 {[%clk 0:02:46.1]} 10... Bd7 {[%clk 0:00:44.7]} 11. Qxf4 {[%clk
0:02:44.4]} 11... Nxe5 {[%clk 0:00:41.4]} 12. Bxd7+ {[%clk 0:02:29.5]} 12...
Nxd7 {[%clk 0:00:40.8]} 13. O-O {[%clk 0:02:26.1]} 13... O-O-O {[%clk
0:00:38.9]} 14. Nbd2 {[%clk 0:02:23.3]} 14... Bg7 {[%clk 0:00:35.3]} 15. Rae1
{[%clk 0:02:23.3]} 15... Rde8 {[%clk 0:00:28]} 16. Nh4 {[%clk 0:02:17]} 16...
Rhf8 {[%clk 0:00:27.7]} 17. Nf5 {[%clk 0:02:15.6]} 17... Qf6 {[%clk 0:00:23]}
18. Nxg7 {[%clk 0:01:44.4]} 18... Qxg7 {[%clk 0:00:22.8]} 19. Ne4 {[%clk
0:01:29.1]} 19... Kb8 {[%clk 0:00:21.5]} 20. Nf6 {[%clk 0:01:27.6]} 20... Nxf6
{[%clk 0:00:21.2]} 21. Qxf6 {[%clk 0:01:28.5]} 21... Qg5 {[%clk 0:00:19.6]} 22.
h4 {[%clk 0:01:26.2]} 22... Qg3 {[%clk 0:00:18.2]} 23. Rxe6 {[%clk 0:01:09.2]}
23... fxe6 {[%clk 0:00:15.4]} 24. Qxf8 {[%clk 0:01:09]} 24... Qg6 {[%clk
0:00:13.7]} 25. h5 {[%clk 0:00:54.6]} 25... Qxh5 {[%clk 0:00:13.2]} 26. Rf7
{[%clk 0:00:48.6]} 26... Rc8 {[%clk 0:00:10]} 27. Qg7 {[%clk 0:00:45]} 27... b6
{[%clk 0:00:09.6]} 28. Rf6 {[%clk 0:00:39]} 28... e5 {[%clk 0:00:09.5]} 29. Rxh6
{[%clk 0:00:35.1]} 29... Qd1+ {[%clk 0:00:09.5]} 30. Kh2 {[%clk 0:00:35]} 30...
e4 {[%clk 0:00:10.4]} 31. Re6 {[%clk 0:00:29]} 31... Qd3 {[%clk 0:00:09.8]} 32.
Qh7 {[%clk 0:00:19.8]} 32... Qd2 {[%clk 0:00:08.5]} 33. Qxe4 {[%clk 0:00:17.5]}
33... Rh8+ {[%clk 0:00:07.6]} 34. Kg3 {[%clk 0:00:16.5]} 34... Rg8+ {[%clk
0:00:07.5]} 35. Kh2 {[%clk 0:00:16.7]} 35... Qxb2 {[%clk 0:00:06.6]} 36. Re8+
{[%clk 0:00:15.5]} 36... Rxe8 {[%clk 0:00:07]} 37. Qxe8+ {[%clk 0:00:16.4]}
37... Kb7 {[%clk 0:00:07.6]} 38. Qe4+ {[%clk 0:00:16.7]} 38... Kb8 {[%clk
0:00:06.5]} 39. Qe8+ {[%clk 0:00:16.4]} 39... Kb7 {[%clk 0:00:07]} 40. Qe4+
{[%clk 0:00:16.9]} 40... Ka6 {[%clk 0:00:06.1]} 41. Qd3+ {[%clk 0:00:14]} 41...
Ka5 {[%clk 0:00:06.3]} 42. d5 {[%clk 0:00:08.7]} 42... Qxa2 {[%clk 0:00:05.5]}
43. Kh3 {[%clk 0:00:04.8]} 43... b5 {[%clk 0:00:05.5]} 44. g4 {[%clk 0:00:04.7]}
44... Qa1 {[%clk 0:00:03.4]} 45. Qd4 {[%clk 0:00:05.2]} 45... Ka6 {[%clk
0:00:02.9]} 46. Kh4 {[%clk 0:00:04.6]} 46... Qh1+ {[%clk 0:00:03]} 47. Kg5
{[%clk 0:00:04.8]} 47... Kb7 {[%clk 0:00:03.6]} 48. Kf5 {[%clk 0:00:04.7]} 48...
a5 {[%clk 0:00:03.7]} 49. g5 {[%clk 0:00:04.7]} 49... a4 {[%clk 0:00:04.2]} 50.
g6 {[%clk 0:00:05.1]} 50... a3 {[%clk 0:00:04.3]} 51. c4 {[%clk 0:00:05.2]}
51... b4 {[%clk 0:00:03.9]} 52. c5 {[%clk 0:00:05.1]} 52... Qf1+ {[%clk
0:00:04]} 53. Ke6 {[%clk 0:00:04.3]} 53... Qe2+ {[%clk 0:00:03.9]} 54. Kf7
{[%clk 0:00:04.1]} 54... Qb5 {[%clk 0:00:04.8]} 55. c6+ {[%clk 0:00:03.9]} 55...
Ka6 {[%clk 0:00:05.2]} 56. g7 {[%clk 0:00:04.4]} 56... Qf1+ {[%clk 0:00:05.8]}
57. Ke8 {[%clk 0:00:04]} 57... Qe2+ {[%clk 0:00:05.8]} 58. Kd7 {[%clk
0:00:04.2]} 58... Qg4+ {[%clk 0:00:05.8]} 59. Kd8 {[%clk 0:00:04]} 59... Qxg7
{[%clk 0:00:06]} 60. Qxg7 {[%clk 0:00:03.5]} 60... Kb5 {[%clk 0:00:05.7]} 61.
Qxc7 {[%clk 0:00:03.4]} 61... a2 {[%clk 0:00:04.6]} 62. Qb7+ {[%clk 0:00:04.3]}
62... Kc4 {[%clk 0:00:04.4]} 63. Qa6+ {[%clk 0:00:04.5]} 63... Kb3 {[%clk
0:00:04.4]} 64. c7 {[%clk 0:00:05.2]} 64... Kb2 {[%clk 0:00:03.8]} 65. c8=Q
{[%clk 0:00:05.6]} 65... a1=Q {[%clk 0:00:04.4]} 66. Qxa1+ {[%clk 0:00:04.8]}
66... Kb3 {[%clk 0:00:05.3]} 67. Qb7 {[%clk 0:00:05]} 67... Kc2 {[%clk
0:00:05.2]} 68. Qaa6 {[%clk 0:00:05.6]} 68... Kb2 {[%clk 0:00:05.1]} 69. Qxd6
{[%clk 0:00:06.5]} 69... Ka1 {[%clk 0:00:05.8]} 70. Qb5 {[%clk 0:00:06.4]} 70...
b3 {[%clk 0:00:06.7]} 71. Qa4+ {[%clk 0:00:05.9]} 71... Kb1 {[%clk 0:00:06.6]}
72. Qxb3+ {[%clk 0:00:06.8]} 72... Ka1 {[%clk 0:00:06.8]} 73. Qe3 {[%clk
0:00:07]} 73... Kb1 {[%clk 0:00:06.8]} 74. Qf2 {[%clk 0:00:07.9]} 74... Ka1
{[%clk 0:00:07.6]} 75. Qdh2 {[%clk 0:00:08.5]} 75... Kb1 {[%clk 0:00:08.5]} 76.
Qhg1# {[%clk 0:00:09.4]} 1-0

[Event "*** Titled Tuesday Blitz"]
[Site "Chess.com"]
[Date "2021.02.16"]
[Round "5"]
[White "ajdemipopushi"]
[Black "PotapovaM"]
[Result "1-0"]
[WhiteElo "2372"]
[BlackElo "2594"]
[TimeControl "180+1"]
[EndTime "10:59:45 PST"]
[Termination "ajdemipopushi won by checkmate"]

1. Nf3 {[%clk 0:03:00.9]} 1... Nf6 {[%clk 0:03:00]} 2. g3 {[%clk 0:03:01.3]}
2... b6 {[%clk 0:03:00.5]} 3. Bg2 {[%clk 0:03:01.2]} 3... Bb7 {[%clk 0:03:01.4]}
4. O-O {[%clk 0:03:01.8]} 4... e6 {[%clk 0:03:01.6]} 5. c4 {[%clk 0:03:02.1]}
5... Be7 {[%clk 0:03:01.8]} 6. d4 {[%clk 0:03:01.7]} 6... O-O {[%clk 0:03:01.7]}
7. Nc3 {[%clk 0:03:01.6]} 7... Ne4 {[%clk 0:03:01.8]} 8. Bd2 {[%clk 0:03:00.7]}
8... f5 {[%clk 0:02:58]} 9. d5 {[%clk 0:02:54.8]} 9... Nxd2 {[%clk 0:02:44]} 10.
Qxd2 {[%clk 0:02:54.8]} 10... Na6 {[%clk 0:02:42.1]} 11. Rfd1 {[%clk 0:02:46.2]}
11... Nc5 {[%clk 0:02:35.8]} 12. b4 {[%clk 0:02:45.7]} 12... Ne4 {[%clk
0:02:35.7]} 13. Nxe4 {[%clk 0:02:36.6]} 13... fxe4 {[%clk 0:02:36.6]} 14. Ne1
{[%clk 0:02:36.7]} 14... exd5 {[%clk 0:02:22.9]} 15. cxd5 {[%clk 0:02:34.9]}
15... Bf6 {[%clk 0:02:03]} 16. Rac1 {[%clk 0:02:29.4]} 16... Re8 {[%clk
0:01:56.9]} 17. e3 {[%clk 0:01:56.9]} 17... a5 {[%clk 0:01:56.1]} 18. a3 {[%clk
0:01:54.3]} 18... axb4 {[%clk 0:01:55.8]} 19. axb4 {[%clk 0:01:54.2]} 19... Ra4
{[%clk 0:00:56.4]} 20. Rc4 {[%clk 0:01:32.9]} 20... Qa8 {[%clk 0:00:45.1]} 21.
Rxc7 {[%clk 0:01:28.1]} 21... Ra2 {[%clk 0:00:31.2]} 22. Rc2 {[%clk 0:01:18.3]}
22... Ra4 {[%clk 0:00:30.9]} 23. h4 {[%clk 0:01:05.5]} 23... d6 {[%clk
0:00:30.5]} 24. Bh3 {[%clk 0:00:59.4]} 24... Kh8 {[%clk 0:00:27.1]} 25. Be6
{[%clk 0:00:57.2]} 25... Qd8 {[%clk 0:00:19.2]} 26. Ng2 {[%clk 0:00:56]} 26...
Be5 {[%clk 0:00:15.5]} 27. Rdc1 {[%clk 0:00:52.9]} 27... Ra8 {[%clk 0:00:14.5]}
28. Rc7 {[%clk 0:00:51.7]} 28... Rb8 {[%clk 0:00:13.8]} 29. Nf4 {[%clk
0:00:48.3]} 29... Qf6 {[%clk 0:00:13.3]} 30. Rf7 {[%clk 0:00:46.5]} 30... Qh6
{[%clk 0:00:12.2]} 31. Rcc7 {[%clk 0:00:45.3]} 31... Ba6 {[%clk 0:00:10.5]} 32.
Bf5 {[%clk 0:00:37]} 32... Rf8 {[%clk 0:00:09.6]} 33. Ne6 {[%clk 0:00:34.1]}
33... Rxf7 {[%clk 0:00:09.1]} 34. Rxf7 {[%clk 0:00:34]} 34... Bd3 {[%clk
0:00:08.9]} 35. Qc1 {[%clk 0:00:29.7]} 35... Rg8 {[%clk 0:00:08.3]} 36. Kg2
{[%clk 0:00:25.2]} 36... Qh5 {[%clk 0:00:07.9]} 37. Qc7 {[%clk 0:00:23.3]} 37...
Qf3+ {[%clk 0:00:07.6]} 38. Kg1 {[%clk 0:00:22.1]} 38... Qd1+ {[%clk 0:00:07]}
39. Kh2 {[%clk 0:00:18.9]} 39... Qf3 {[%clk 0:00:05.6]} 40. Kg1 {[%clk 0:00:17]}
40... Qd1+ {[%clk 0:00:05.5]} 41. Kh2 {[%clk 0:00:17.4]} 41... Qf1 {[%clk
0:00:05.6]} 42. Bh3 {[%clk 0:00:17.4]} 42... Qe1 {[%clk 0:00:05.2]} 43. Qe7
{[%clk 0:00:16.3]} 43... Bf1 {[%clk 0:00:03.7]} 44. Rf8 {[%clk 0:00:15.3]} 44...
h6 {[%clk 0:00:02.8]} 45. Qf7 {[%clk 0:00:12.3]} 45... Rxf8 {[%clk 0:00:02.2]}
46. Qxf8+ {[%clk 0:00:12.4]} 46... Kh7 {[%clk 0:00:03.1]} 47. Bxf1 {[%clk
0:00:12.4]} 47... Qxf1 {[%clk 0:00:03]} 48. Qf5+ {[%clk 0:00:13]} 48... Kg8
{[%clk 0:00:02.7]} 49. h5 {[%clk 0:00:11.4]} 49... Qe2 {[%clk 0:00:02.5]} 50.
Kg2 {[%clk 0:00:10.9]} 50... Qe1 {[%clk 0:00:02.2]} 51. Qxe4 {[%clk 0:00:10.8]}
51... Qd1 {[%clk 0:00:02.1]} 52. Qf3 {[%clk 0:00:11.2]} 52... Qd3 {[%clk
0:00:02.3]} 53. Qf8+ {[%clk 0:00:10.3]} 53... Kh7 {[%clk 0:00:02.5]} 54. Qf3
{[%clk 0:00:09.5]} 54... Qd2 {[%clk 0:00:02.9]} 55. b5 {[%clk 0:00:09.6]} 55...
Qc1 {[%clk 0:00:02]} 56. Nf8+ {[%clk 0:00:08.8]} 56... Kg8 {[%clk 0:00:01.6]}
57. Ng6 {[%clk 0:00:09.4]} 57... Bf6 {[%clk 0:00:01.2]} 58. Qe4 {[%clk 0:00:08]}
58... Qc8 {[%clk 0:00:01.8]} 59. Qe6+ {[%clk 0:00:06.2]} 59... Qxe6 {[%clk
0:00:01.3]} 60. dxe6 {[%clk 0:00:06.6]} 60... Bg5 {[%clk 0:00:01.1]} 61. f4
{[%clk 0:00:06.6]} 61... Bf6 {[%clk 0:00:01.4]} 62. e4 {[%clk 0:00:07]} 62...
Bd8 {[%clk 0:00:01]} 63. Kf3 {[%clk 0:00:07.4]} 63... Bf6 {[%clk 0:00:01.3]} 64.
Ke2 {[%clk 0:00:07.3]} 64... Bd8 {[%clk 0:00:01.9]} 65. Kd3 {[%clk 0:00:07.6]}
65... Bf6 {[%clk 0:00:02.6]} 66. Kc4 {[%clk 0:00:08]} 66... Bd8 {[%clk
0:00:03.2]} 67. Kd5 {[%clk 0:00:08.4]} 67... Bf6 {[%clk 0:00:03.9]} 68. Kxd6
{[%clk 0:00:08.5]} 68... Kh7 {[%clk 0:00:04.2]} 69. Kd7 {[%clk 0:00:08.6]} 69...
Bd4 {[%clk 0:00:03.9]} 70. e7 {[%clk 0:00:09]} 70... Bc5 {[%clk 0:00:03.8]} 71.
e8=Q {[%clk 0:00:09.3]} 71... Bf8 {[%clk 0:00:04.6]} 72. Qd8 {[%clk 0:00:08.2]}
72... Kg8 {[%clk 0:00:04]} 73. Qxf8+ {[%clk 0:00:08]} 73... Kh7 {[%clk
0:00:04.7]} 74. Qh8# {[%clk 0:00:08.9]} 1-0

[Event "*** Titled Tuesday Blitz"]
[Site "Chess.com"]
[Date "2021.02.16"]
[Round "5"]
[White "Kiborg95"]
[Black "TigrVShlyape"]
[Result "1-0"]
[WhiteElo "2752"]
[BlackElo "2906"]
[TimeControl "180+1"]
[EndTime "10:59:53 PST"]
[Termination "Kiborg95 won on time"]

1. e4 {[%clk 0:03:00.9]} 1... e5 {[%clk 0:02:57.1]} 2. Nf3 {[%clk 0:02:59.4]}
2... Nc6 {[%clk 0:02:55.2]} 3. Bc4 {[%clk 0:02:59.8]} 3... Nf6 {[%clk
0:02:51.7]} 4. d3 {[%clk 0:03:00]} 4... h6 {[%clk 0:02:51.3]} 5. c3 {[%clk
0:02:57.4]} 5... d6 {[%clk 0:02:51]} 6. Nbd2 {[%clk 0:02:57.2]} 6... g6 {[%clk
0:02:51]} 7. O-O {[%clk 0:02:54.3]} 7... Bg7 {[%clk 0:02:51.2]} 8. Bb3 {[%clk
0:02:50.1]} 8... O-O {[%clk 0:02:50.9]} 9. Re1 {[%clk 0:02:45.5]} 9... Bd7
{[%clk 0:02:48.2]} 10. d4 {[%clk 0:02:42]} 10... Qe8 {[%clk 0:02:44.4]} 11. Nf1
{[%clk 0:02:33.7]} 11... Nh5 {[%clk 0:02:42.2]} 12. dxe5 {[%clk 0:02:16.6]}
12... dxe5 {[%clk 0:02:31]} 13. Nh4 {[%clk 0:02:16.6]} 13... Kh7 {[%clk
0:02:26.2]} 14. Nf5 {[%clk 0:02:13.8]} 14... gxf5 {[%clk 0:02:16.5]} 15. Qxh5
{[%clk 0:02:13.7]} 15... fxe4 {[%clk 0:02:15.6]} 16. g4 {[%clk 0:01:50.5]} 16...
f5 {[%clk 0:01:57.8]} 17. Qxe8 {[%clk 0:01:49.4]} 17... Raxe8 {[%clk 0:01:57.1]}
18. gxf5 {[%clk 0:01:49.5]} 18... Ne7 {[%clk 0:01:48.8]} 19. Bc2 {[%clk
0:01:40.9]} 19... Bxf5 {[%clk 0:01:31.8]} 20. Ng3 {[%clk 0:01:39.1]} 20... Bg6
{[%clk 0:01:31.5]} 21. Bxe4 {[%clk 0:01:33.4]} 21... Bxe4 {[%clk 0:01:18.9]} 22.
Rxe4 {[%clk 0:01:34.3]} 22... Nd5 {[%clk 0:01:13.6]} 23. Be3 {[%clk 0:01:25.6]}
23... Nxe3 {[%clk 0:01:10.5]} 24. Rxe3 {[%clk 0:01:10.1]} 24... Rd8 {[%clk
0:01:10.7]} 25. Rae1 {[%clk 0:01:06.3]} 25... Rf7 {[%clk 0:01:06.4]} 26. Kg2
{[%clk 0:01:05.4]} 26... Kg6 {[%clk 0:00:54.3]} 27. R1e2 {[%clk 0:01:02]} 27...
h5 {[%clk 0:00:53]} 28. Ne4 {[%clk 0:00:58.1]} 28... h4 {[%clk 0:00:42.2]} 29.
h3 {[%clk 0:00:57.9]} 29... b6 {[%clk 0:00:41.2]} 30. Nd2 {[%clk 0:00:53.2]}
30... Bh6 {[%clk 0:00:40.7]} 31. Nc4 {[%clk 0:00:49.8]} 31... Kh7 {[%clk
0:00:35.6]} 32. Re4 {[%clk 0:00:40]} 32... Rg8+ {[%clk 0:00:32.1]} 33. Rg4
{[%clk 0:00:36.7]} 33... Rxg4+ {[%clk 0:00:21.7]} 34. hxg4 {[%clk 0:00:37.6]}
34... Rf4 {[%clk 0:00:21.3]} 35. Nxe5 {[%clk 0:00:34]} 35... Bg7 {[%clk
0:00:21.4]} 36. f3 {[%clk 0:00:30.3]} 36... c5 {[%clk 0:00:21.4]} 37. Nd3 {[%clk
0:00:23]} 37... Rf7 {[%clk 0:00:19.5]} 38. Nf2 {[%clk 0:00:23.2]} 38... Rd7
{[%clk 0:00:17.9]} 39. Nh3 {[%clk 0:00:23.4]} 39... Kg6 {[%clk 0:00:16.5]} 40.
f4 {[%clk 0:00:23.6]} 40... Bf6 {[%clk 0:00:15.4]} 41. g5 {[%clk 0:00:22.9]}
41... Bg7 {[%clk 0:00:15.3]} 42. Kf3 {[%clk 0:00:14.1]} 42... Kf5 {[%clk
0:00:15.6]} 43. Nf2 {[%clk 0:00:14.2]} 43... c4 {[%clk 0:00:15.8]} 44. Re4
{[%clk 0:00:13.5]} 44... b5 {[%clk 0:00:14.8]} 45. a4 {[%clk 0:00:13.1]} 45...
a6 {[%clk 0:00:13.2]} 46. axb5 {[%clk 0:00:13.5]} 46... axb5 {[%clk 0:00:13.5]}
47. Re8 {[%clk 0:00:13.8]} 47... Rd2 {[%clk 0:00:12.6]} 48. Re7 {[%clk
0:00:14.2]} 48... Kg6 {[%clk 0:00:11.6]} 49. f5+ {[%clk 0:00:11.9]} 49... Kxf5
{[%clk 0:00:10.6]} 50. Rxg7 {[%clk 0:00:12.2]} 50... Rxb2 {[%clk 0:00:11]} 51.
Ne4 {[%clk 0:00:10.9]} 51... b4 {[%clk 0:00:10.6]} 52. Rf7+ {[%clk 0:00:10.7]}
52... Kg6 {[%clk 0:00:10.4]} 53. Rf6+ {[%clk 0:00:11]} 53... Kg7 {[%clk
0:00:10.5]} 54. cxb4 {[%clk 0:00:11.5]} 54... Rxb4 {[%clk 0:00:10.2]} 55. Rh6
{[%clk 0:00:10.9]} 55... Rb3+ {[%clk 0:00:09.7]} 56. Kg4 {[%clk 0:00:10.8]}
56... c3 {[%clk 0:00:10.1]} 57. Rc6 {[%clk 0:00:10.1]} 57... Rb4 {[%clk
0:00:09.9]} 58. Kf5 {[%clk 0:00:10.5]} 58... Rb5+ {[%clk 0:00:09.3]} 59. Kf4
{[%clk 0:00:11.1]} 59... h3 {[%clk 0:00:08.2]} 60. Rxc3 {[%clk 0:00:11.3]} 60...
h2 {[%clk 0:00:08.6]} 61. Rh3 {[%clk 0:00:11.7]} 61... Rb2 {[%clk 0:00:09]} 62.
Ng3 {[%clk 0:00:10.9]} 62... Kg6 {[%clk 0:00:09.3]} 63. Rh6+ {[%clk 0:00:10.3]}
63... Kf7 {[%clk 0:00:09]} 64. Nf5 {[%clk 0:00:10.6]} 64... Rf2+ {[%clk
0:00:08.4]} 65. Kg4 {[%clk 0:00:10]} 65... Rg2+ {[%clk 0:00:08.8]} 66. Ng3
{[%clk 0:00:10.4]} 66... Kg7 {[%clk 0:00:08.3]} 67. Kf3 {[%clk 0:00:09]} 67...
Rb2 {[%clk 0:00:08.2]} 68. Nf5+ {[%clk 0:00:09.1]} 68... Kf7 {[%clk 0:00:07.8]}
69. Ne3 {[%clk 0:00:09.5]} 69... Kg7 {[%clk 0:00:07.5]} 70. Ng4 {[%clk
0:00:07.5]} 70... Rb5 {[%clk 0:00:07]} 71. Kf4 {[%clk 0:00:07.7]} 71... Rb4+
{[%clk 0:00:07.4]} 72. Kf5 {[%clk 0:00:08.2]} 72... Rb5+ {[%clk 0:00:06]} 73.
Ne5 {[%clk 0:00:08.5]} 73... Rb2 {[%clk 0:00:06.3]} 74. Nf3 {[%clk 0:00:09]}
74... Rf2 {[%clk 0:00:05.9]} 75. Kg4 {[%clk 0:00:09]} 75... Rg2+ {[%clk
0:00:06.1]} 76. Kf4 {[%clk 0:00:09.4]} 76... Rb2 {[%clk 0:00:05.9]} 77. Rxh2
{[%clk 0:00:09.2]} 77... Rb4+ {[%clk 0:00:06]} 78. Kf5 {[%clk 0:00:09.7]} 78...
Rb2 {[%clk 0:00:06.3]} 79. Rxb2 {[%clk 0:00:08.9]} 1-0

[Event "*** Titled Tuesday Blitz"]
[Site "Chess.com"]
[Date "2021.02.16"]
[Round "5"]
[White "nrvisakh"]
[Black "Eltaj_Safarli"]
[Result "1-0"]
[WhiteElo "2793"]
[BlackElo "2912"]
[TimeControl "180+1"]
[EndTime "10:59:55 PST"]
[Termination "nrvisakh won by resignation"]

1. c4 {[%clk 0:03:00.9]} 1... c5 {[%clk 0:02:58.9]} 2. Nc3 {[%clk 0:02:57.1]}
2... Nf6 {[%clk 0:02:58.1]} 3. Nf3 {[%clk 0:02:56.9]} 3... e6 {[%clk 0:02:57.7]}
4. e3 {[%clk 0:02:55.8]} 4... d5 {[%clk 0:02:57.3]} 5. cxd5 {[%clk 0:02:55.2]}
5... exd5 {[%clk 0:02:57.1]} 6. d4 {[%clk 0:02:54.4]} 6... a6 {[%clk 0:02:57.3]}
7. Bd3 {[%clk 0:02:51.9]} 7... Nc6 {[%clk 0:02:56.9]} 8. O-O {[%clk 0:02:50.4]}
8... Bg4 {[%clk 0:02:53.6]} 9. dxc5 {[%clk 0:02:44.8]} 9... Bxc5 {[%clk
0:02:53.7]} 10. h3 {[%clk 0:02:45]} 10... Bh5 {[%clk 0:02:53.7]} 11. Be2 {[%clk
0:02:45.2]} 11... O-O {[%clk 0:02:53]} 12. Nd4 {[%clk 0:02:45.3]} 12... Bxd4
{[%clk 0:02:50.8]} 13. exd4 {[%clk 0:02:42.5]} 13... Bxe2 {[%clk 0:02:50.9]} 14.
Nxe2 {[%clk 0:02:42.6]} 14... Re8 {[%clk 0:02:51.8]} 15. Bg5 {[%clk 0:02:40]}
15... h6 {[%clk 0:02:50.9]} 16. Bxf6 {[%clk 0:01:39.3]} 16... Qxf6 {[%clk
0:02:51.8]} 17. Qd2 {[%clk 0:01:39.4]} 17... Re4 {[%clk 0:02:48.6]} 18. f3
{[%clk 0:01:37.6]} 18... Re7 {[%clk 0:02:44.9]} 19. Nc3 {[%clk 0:01:31.1]} 19...
Rd8 {[%clk 0:02:17.7]} 20. Rad1 {[%clk 0:01:28.7]} 20... h5 {[%clk 0:02:13.9]}
21. Kh1 {[%clk 0:01:16.2]} 21... h4 {[%clk 0:02:13.1]} 22. Rfe1 {[%clk
0:01:15.8]} 22... Rxe1+ {[%clk 0:02:04.1]} 23. Qxe1 {[%clk 0:01:16]} 23... g6
{[%clk 0:01:47.8]} 24. Qe3 {[%clk 0:01:08.1]} 24... Kg7 {[%clk 0:01:44.7]} 25.
Ne2 {[%clk 0:01:01.4]} 25... Ne7 {[%clk 0:01:39.3]} 26. Qe5 {[%clk 0:00:57.6]}
26... Nf5 {[%clk 0:01:35.7]} 27. Kg1 {[%clk 0:00:56]} 27... Qxe5 {[%clk
0:01:27.4]} 28. dxe5 {[%clk 0:00:55.8]} 28... d4 {[%clk 0:01:28.3]} 29. Kf2
{[%clk 0:00:51.6]} 29... b5 {[%clk 0:01:04]} 30. f4 {[%clk 0:00:51]} 30... b4
{[%clk 0:00:41.9]} 31. Kf3 {[%clk 0:00:48.8]} 31... d3 {[%clk 0:00:42.1]} 32.
Nc1 {[%clk 0:00:48.4]} 32... d2 {[%clk 0:00:38.4]} 33. Nb3 {[%clk 0:00:47.4]}
33... Rd3+ {[%clk 0:00:33.4]} 34. Kf2 {[%clk 0:00:45.1]} 34... Ng3 {[%clk
0:00:17.9]} 35. Rxd2 {[%clk 0:00:25.3]} 35... Ne4+ {[%clk 0:00:17.2]} 36. Ke2
{[%clk 0:00:25.5]} 36... Rg3 {[%clk 0:00:13.9]} 37. Rd4 {[%clk 0:00:25.3]} 37...
f5 {[%clk 0:00:10.8]} 38. exf6+ {[%clk 0:00:25.2]} 38... Nxf6 {[%clk 0:00:10.9]}
39. Kf1 {[%clk 0:00:24.7]} 39... Re3 {[%clk 0:00:04.9]} 40. Rxb4 {[%clk
0:00:20.6]} 40... Ne4 {[%clk 0:00:05.1]} 41. Nd4 {[%clk 0:00:12.5]} 41... a5
{[%clk 0:00:04]} 42. Ra4 {[%clk 0:00:10.8]} 42... Ng3+ {[%clk 0:00:01.8]} 43.
Kf2 {[%clk 0:00:10.5]} 43... Rd3 {[%clk 0:00:02.7]} 44. Nf3 {[%clk 0:00:09.1]}
44... Ne4+ {[%clk 0:00:02.5]} 45. Ke2 {[%clk 0:00:09.3]} 45... Nc5 {[%clk
0:00:01.9]} 46. Rc4 {[%clk 0:00:08.4]} 46... Rd5 {[%clk 0:00:02.8]} 47. Ke3
{[%clk 0:00:07.4]} 47... Rd3+ {[%clk 0:00:01.8]} 48. Ke2 {[%clk 0:00:07.3]}
48... Rd5 {[%clk 0:00:02.7]} 49. b3 {[%clk 0:00:07.5]} 49... Ne6 {[%clk
0:00:03]} 50. Nxh4 {[%clk 0:00:07.1]} 50... Kf6 {[%clk 0:00:02.7]} 51. Nf3
{[%clk 0:00:07.2]} 51... Nc5 {[%clk 0:00:03.3]} 52. g4 {[%clk 0:00:07.2]} 52...
Nd3 {[%clk 0:00:03.8]} 53. h4 {[%clk 0:00:07.2]} 53... Nb4 {[%clk 0:00:03.4]}
54. a4 {[%clk 0:00:06.6]} 54... Nd3 {[%clk 0:00:02.9]} 55. Ke3 {[%clk
0:00:06.7]} 55... Nc5 {[%clk 0:00:03.1]} 56. Nd4 {[%clk 0:00:06.1]} 56... Nd7
{[%clk 0:00:02.6]} 57. g5+ {[%clk 0:00:06.4]} 57... Kf7 {[%clk 0:00:02.8]} 58.
Ke4 {[%clk 0:00:06.4]} 58... Rd6 {[%clk 0:00:02.7]} 59. Rc6 {[%clk 0:00:06.8]}
59... Rxc6 {[%clk 0:00:03.1]} 60. Nxc6 {[%clk 0:00:07.7]} 60... Nc5+ {[%clk
0:00:04]} 61. Kd5 {[%clk 0:00:07.8]} 61... Nxb3 {[%clk 0:00:04.9]} 62. Kc4
{[%clk 0:00:07.7]} 62... Nd2+ {[%clk 0:00:05.2]} 63. Kb5 {[%clk 0:00:08]} 63...
Ke6 {[%clk 0:00:05.3]} 64. Kxa5 {[%clk 0:00:07.8]} 64... Kd7 {[%clk 0:00:04.9]}
65. Ne5+ {[%clk 0:00:08]} 65... Kc7 {[%clk 0:00:04.4]} 66. Nxg6 {[%clk
0:00:08.9]} 66... Nc4+ {[%clk 0:00:05.2]} 67. Kb5 {[%clk 0:00:08.6]} 67... Ne3
{[%clk 0:00:06.1]} 68. h5 {[%clk 0:00:08.9]} 68... Nd5 {[%clk 0:00:07]} 69. h6
{[%clk 0:00:08.7]} 69... Nc3+ {[%clk 0:00:07.9]} 70. Kc4 {[%clk 0:00:08]} 70...
Ne4 {[%clk 0:00:08.8]} 71. h7 {[%clk 0:00:07.3]} 71... Nd6+ {[%clk 0:00:09.7]}
72. Kd5 {[%clk 0:00:07.3]} 72... Nf7 {[%clk 0:00:10.6]} 73. h8=Q {[%clk
0:00:07.5]} 73... Nxh8 {[%clk 0:00:11.5]} 74. Nxh8 {[%clk 0:00:08.3]} 74... Kb6
{[%clk 0:00:12.4]} 75. g6 {[%clk 0:00:08.4]} 75... Ka5 {[%clk 0:00:13.3]} 1-0